[Event "Early Titled Tuesday Blitz | February 8 2022"]
[White "Sarana, Alexey"]
[Black "Fier, Alexandr"]
[WhiteFideId "24133795"]
[BlackFideId "2107139"]
[WhiteElo "2665"]
[BlackElo "2569"]
[Result "1-0"]
[Round "07"]
[TimeControl "180+1"]
[Date "2022.02.08"]
[WhiteClock "0:00:14"]
[BlackClock "0:00:08"]

1. d4 {[%clk 0:02:57]}  Nf6 {[%clk 0:03:00]} 2. c4 {[%clk 0:02:57]}  c5 {[%clk 0:03:01]} 3. d5 {[%clk 0:02:57]}  e6 {[%clk 0:03:02]} 4. Nc3 {[%clk 0:02:57]}  exd5 {[%clk 0:03:02]} 5. cxd5 {[%clk 0:02:58]}  d6 {[%clk 0:03:03]} 6. e4 {[%clk 0:02:59]}  g6 {[%clk 0:03:04]} 7. Be2 {[%clk 0:02:57]}  Bg7 {[%clk 0:03:04]} 8. Nf3 {[%clk 0:02:58]}  O-O {[%clk 0:03:04]} 9. Be3 {[%clk 0:02:58]}  Nbd7 {[%clk 0:03:01]} 10. O-O {[%clk 0:02:58]}  Ng4 {[%clk 0:02:59]} 11. Bf4 {[%clk 0:02:47]}  Nge5 {[%clk 0:02:59]} 12. Nd2 {[%clk 0:02:42]}  a6 {[%clk 0:02:57]} 13. a4 {[%clk 0:02:41]}  h5 {[%clk 0:02:51]} 14. h3 {[%clk 0:02:41]}  h4 {[%clk 0:02:49]} 15. Bh2 {[%clk 0:02:41]}  g5 {[%clk 0:02:48]} 16. f4 {[%clk 0:02:37]}  gxf4 {[%clk 0:02:48]} 17. Bxf4 {[%clk 0:02:38]}  Re8 {[%clk 0:02:45]} 18. Bg4 {[%clk 0:02:28]}  Nd3 {[%clk 0:02:02]} 19. Bxd6 {[%clk 0:02:20]}  Nf6 {[%clk 0:02:00]} 20. Bh2 {[%clk 0:02:14]}  Nxg4 {[%clk 0:01:59]} 21. hxg4 {[%clk 0:02:15]}  Qg5 {[%clk 0:01:39]} 22. Nf3 {[%clk 0:02:11]}  Qe3+ {[%clk 0:01:38]} 23. Kh1 {[%clk 0:02:11]}  Bxg4 {[%clk 0:01:36]} 24. Bg1 {[%clk 0:02:11]}  Nxb2 {[%clk 0:01:31]} 25. Bxe3 {[%clk 0:01:54]}  Nxd1 {[%clk 0:01:31]} 26. Raxd1 {[%clk 0:01:41]}  Bxc3 {[%clk 0:01:32]} 27. Rc1 {[%clk 0:01:41]}  Bg7 {[%clk 0:01:31]} 28. Nd2 {[%clk 0:01:36]}  c4 {[%clk 0:01:26]} 29. Rf4 {[%clk 0:01:30]}  Be2 {[%clk 0:01:26]} 30. Nxc4 {[%clk 0:01:27]}  Rec8 {[%clk 0:00:51]} 31. Nb6 {[%clk 0:01:16]}  Rxc1+ {[%clk 0:00:50]} 32. Bxc1 {[%clk 0:01:17]}  Re8 {[%clk 0:00:49]} 33. d6 {[%clk 0:01:04]}  Rd8 {[%clk 0:00:41]} 34. d7 {[%clk 0:00:56]}  Bd4 {[%clk 0:00:41]} 35. Nd5 {[%clk 0:00:54]}  Rxd7 {[%clk 0:00:41]} 36. Rxh4 {[%clk 0:00:55]}  Rd6 {[%clk 0:00:38]} 37. Bf4 {[%clk 0:00:52]}  Re6 {[%clk 0:00:37]} 38. Bg5 {[%clk 0:00:34]}  Kg7 {[%clk 0:00:30]} 39. Nf4 {[%clk 0:00:31]}  Rxe4 {[%clk 0:00:18]} 40. Nh5+ {[%clk 0:00:31]}  Bxh5 {[%clk 0:00:18]} 41. Rxe4 {[%clk 0:00:31]}  Bc5 {[%clk 0:00:18]} 42. Be3 {[%clk 0:00:22]}  Bd6 {[%clk 0:00:17]} 43. a5 {[%clk 0:00:18]}  Bg6 {[%clk 0:00:15]} 44. Re8 {[%clk 0:00:17]}  Bb4 {[%clk 0:00:15]} 45. Bb6 {[%clk 0:00:17]}  Kh6 {[%clk 0:00:14]} 46. Rd8 {[%clk 0:00:15]}  Bc3 {[%clk 0:00:12]} 47. Rd7 {[%clk 0:00:14]}  f6 {[%clk 0:00:09]} 48. Rxb7 {[%clk 0:00:13]}  Bd3 {[%clk 0:00:10]} 49. Be3+ {[%clk 0:00:12]}  Kh5 {[%clk 0:00:10]} 50. Rb3 {[%clk 0:00:13]}  Bxa5 {[%clk 0:00:08]} 51. Rxd3 {[%clk 0:00:14]} 1-0


[Site "https://www.chess.com"]

[Event "Early Titled Tuesday Blitz | February 8 2022"]
[White "Sharapov, Evgeny"]
[Black "Terletsky, Oleg"]
[WhiteFideId "14103133"]
[BlackFideId "14116774"]
[WhiteElo "2367"]
[BlackElo "2050"]
[Result "1-0"]
[Round "07"]
[TimeControl "180+1"]
[Date "2022.02.08"]
[WhiteClock "0:00:19"]
[BlackClock "0:00:04"]

1. e4 {[%clk 0:02:59]}  e5 {[%clk 0:02:59]} 2. Nf3 {[%clk 0:02:59]}  Nc6 {[%clk 0:02:59]} 3. Bb5 {[%clk 0:02:55]}  a6 {[%clk 0:02:59]} 4. Ba4 {[%clk 0:02:55]}  Nf6 {[%clk 0:02:58]} 5. O-O {[%clk 0:02:54]}  Be7 {[%clk 0:02:58]} 6. Re1 {[%clk 0:02:53]}  b5 {[%clk 0:02:58]} 7. Bb3 {[%clk 0:02:52]}  d6 {[%clk 0:02:59]} 8. c3 {[%clk 0:02:48]}  O-O {[%clk 0:02:58]} 9. a4 {[%clk 0:02:48]}  Bb7 {[%clk 0:02:53]} 10. d3 {[%clk 0:02:44]}  Na5 {[%clk 0:02:51]} 11. Bc2 {[%clk 0:02:40]}  c5 {[%clk 0:02:51]} 12. Nbd2 {[%clk 0:02:38]}  Nc6 {[%clk 0:02:46]} 13. Nf1 {[%clk 0:02:37]}  Re8 {[%clk 0:02:45]} 14. Ng3 {[%clk 0:02:34]}  Bf8 {[%clk 0:02:45]} 15. d4 {[%clk 0:02:29]}  cxd4 {[%clk 0:02:40]} 16. cxd4 {[%clk 0:02:29]}  Nb4 {[%clk 0:02:36]} 17. Bb1 {[%clk 0:02:29]}  exd4 {[%clk 0:02:28]} 18. Nxd4 {[%clk 0:02:27]}  bxa4 {[%clk 0:02:16]} 19. Rxa4 {[%clk 0:02:19]}  a5 {[%clk 0:02:14]} 20. Bd2 {[%clk 0:02:16]}  d5 {[%clk 0:01:53]} 21. e5 {[%clk 0:02:15]}  Ne4 {[%clk 0:01:53]} 22. Nxe4 {[%clk 0:02:11]}  dxe4 {[%clk 0:01:52]} 23. Bc3 {[%clk 0:02:04]}  Rxe5 {[%clk 0:01:39]} 24. Qe2 {[%clk 0:01:50]}  Ba6 {[%clk 0:00:56]} 25. Qd2 {[%clk 0:01:45]}  Qd7 {[%clk 0:00:43]} 26. Ra1 {[%clk 0:01:37]}  Rae8 {[%clk 0:00:32]} 27. Nb3 {[%clk 0:01:24]}  Rd5 {[%clk 0:00:28]} 28. Qc1 {[%clk 0:01:08]}  Nd3 {[%clk 0:00:23]} 29. Bxd3 {[%clk 0:01:08]}  exd3 {[%clk 0:00:18]} 30. Rxe8 {[%clk 0:01:07]}  Qxe8 {[%clk 0:00:18]} 31. Rxa5 {[%clk 0:01:05]}  Rxa5 {[%clk 0:00:17]} 32. Nxa5 {[%clk 0:01:03]}  Qe2 {[%clk 0:00:16]} 33. Qd2 {[%clk 0:00:57]}  Qe4 {[%clk 0:00:15]} 34. Qe3 {[%clk 0:00:47]}  Qa4 {[%clk 0:00:12]} 35. h3 {[%clk 0:00:40]}  h6 {[%clk 0:00:11]} 36. Kh2 {[%clk 0:00:33]}  Bd6+ {[%clk 0:00:10]} 37. g3 {[%clk 0:00:31]}  Qd1 {[%clk 0:00:07]} 38. Qe8+ {[%clk 0:00:23]}  Kh7 {[%clk 0:00:07]} 39. Qe4+ {[%clk 0:00:20]}  Kg8 {[%clk 0:00:05]} 40. Qe8+ {[%clk 0:00:20]}  Kh7 {[%clk 0:00:04]} 41. Qxf7 {[%clk 0:00:19]} 1-0


[Site "https://www.chess.com"]

[Event "Early Titled Tuesday Blitz | February 8 2022"]
[White "Sharavdorj, Dashzegve"]
[Black "Maksimenko, Viktor"]
[WhiteFideId "4900340"]
[BlackFideId "13710478"]
[WhiteElo "2366"]
[BlackElo "2269"]
[Result "1-0"]
[Round "07"]
[TimeControl "180+1"]
[Date "2022.02.08"]
[WhiteClock "0:01:25"]
[BlackClock "0:00:08"]

1. d4 {[%clk 0:03:00]}  Nf6 {[%clk 0:02:59]} 2. c4 {[%clk 0:03:00]}  e6 {[%clk 0:02:59]} 3. Nf3 {[%clk 0:03:00]}  b6 {[%clk 0:02:59]} 4. a3 {[%clk 0:02:59]}  Bb7 {[%clk 0:02:56]} 5. Nc3 {[%clk 0:02:59]}  d5 {[%clk 0:02:55]} 6. cxd5 {[%clk 0:02:58]}  Nxd5 {[%clk 0:02:56]} 7. Qc2 {[%clk 0:02:58]}  Nd7 {[%clk 0:02:56]} 8. e4 {[%clk 0:02:57]}  Nxc3 {[%clk 0:02:56]} 9. bxc3 {[%clk 0:02:57]}  c5 {[%clk 0:02:56]} 10. Bf4 {[%clk 0:02:57]}  cxd4 {[%clk 0:02:52]} 11. cxd4 {[%clk 0:02:57]}  Rc8 {[%clk 0:02:52]} 12. Qb3 {[%clk 0:02:57]}  Be7 {[%clk 0:02:48]} 13. Bd3 {[%clk 0:02:56]}  O-O {[%clk 0:02:48]} 14. O-O {[%clk 0:02:56]}  Nf6 {[%clk 0:02:48]} 15. Rfe1 {[%clk 0:02:55]}  Nh5 {[%clk 0:02:35]} 16. Bd2 {[%clk 0:02:54]}  Bd6 {[%clk 0:02:28]} 17. a4 {[%clk 0:02:40]}  Nf4 {[%clk 0:02:11]} 18. Bf1 {[%clk 0:02:31]}  Bb8 {[%clk 0:01:46]} 19. a5 {[%clk 0:02:30]}  g5 {[%clk 0:01:00]} 20. axb6 {[%clk 0:02:24]}  axb6 {[%clk 0:00:59]} 21. Bb4 {[%clk 0:02:20]}  Re8 {[%clk 0:00:47]} 22. Bb5 {[%clk 0:02:19]}  g4 {[%clk 0:00:30]} 23. Ne5 {[%clk 0:02:18]}  Qxd4 {[%clk 0:00:25]} 24. Nxg4 {[%clk 0:02:08]}  Red8 {[%clk 0:00:17]} 25. Be7 {[%clk 0:02:07]}  Qg7 {[%clk 0:00:15]} 26. h3 {[%clk 0:02:00]}  Rd2 {[%clk 0:00:14]} 27. Bf6 {[%clk 0:01:57]}  Qg6 {[%clk 0:00:12]} 28. Rad1 {[%clk 0:01:48]}  Rxd1 {[%clk 0:00:11]} 29. Rxd1 {[%clk 0:01:48]}  h5 {[%clk 0:00:11]} 30. Bd7 {[%clk 0:01:25]}  hxg4 {[%clk 0:00:10]} 31. Bxc8 {[%clk 0:01:25]}  gxh3 {[%clk 0:00:08]} 32. Rd8+ {[%clk 0:01:25]} 1-0


[Site "https://www.chess.com"]

[Event "Early Titled Tuesday Blitz | February 8 2022"]
[White "Shevchenko, Kirill"]
[Black "Srihari L R"]
[WhiteFideId "14129574"]
[BlackFideId "46617116"]
[WhiteElo "2624"]
[BlackElo "2121"]
[Result "1-0"]
[Round "07"]
[TimeControl "180+1"]
[Date "2022.02.08"]
[WhiteClock "0:00:17"]
[BlackClock "0:00:02"]

1. g3 {[%clk 0:03:00]}  d5 {[%clk 0:02:58]} 2. Bg2 {[%clk 0:03:01]}  Nf6 {[%clk 0:02:59]} 3. d3 {[%clk 0:03:01]}  c5 {[%clk 0:02:59]} 4. Nf3 {[%clk 0:02:59]}  Nc6 {[%clk 0:02:59]} 5. O-O {[%clk 0:02:59]}  e5 {[%clk 0:02:59]} 6. e4 {[%clk 0:02:58]}  dxe4 {[%clk 0:02:54]} 7. dxe4 {[%clk 0:02:59]}  Qxd1 {[%clk 0:02:55]} 8. Rxd1 {[%clk 0:02:59]}  Bg4 {[%clk 0:02:55]} 9. Na3 {[%clk 0:02:59]}  Nd4 {[%clk 0:02:48]} 10. Rd3 {[%clk 0:02:59]}  Bxf3 {[%clk 0:02:27]} 11. Bxf3 {[%clk 0:02:59]}  O-O-O {[%clk 0:02:27]} 12. Bg5 {[%clk 0:02:38]}  Be7 {[%clk 0:02:26]} 13. Bxf6 {[%clk 0:02:22]}  Bxf6 {[%clk 0:02:24]} 14. Bg4+ {[%clk 0:02:22]}  Kc7 {[%clk 0:02:24]} 15. c3 {[%clk 0:02:19]}  Nc6 {[%clk 0:02:07]} 16. Nb5+ {[%clk 0:02:19]}  Kb6 {[%clk 0:02:06]} 17. Nd6 {[%clk 0:02:19]}  Be7 {[%clk 0:02:04]} 18. Nc4+ {[%clk 0:02:12]}  Kc7 {[%clk 0:02:04]} 19. Rd5 {[%clk 0:02:09]}  h5 {[%clk 0:01:22]} 20. Bh3 {[%clk 0:01:59]}  h4 {[%clk 0:01:19]} 21. Kg2 {[%clk 0:01:56]}  hxg3 {[%clk 0:01:18]} 22. hxg3 {[%clk 0:01:57]}  Rxd5 {[%clk 0:00:59]} 23. exd5 {[%clk 0:01:57]}  Nd8 {[%clk 0:01:00]} 24. Nxe5 {[%clk 0:01:52]}  Bd6 {[%clk 0:01:00]} 25. Nc4 {[%clk 0:01:46]}  Re8 {[%clk 0:01:00]} 26. Kf3 {[%clk 0:01:45]}  f6 {[%clk 0:01:00]} 27. Rd1 {[%clk 0:01:18]}  Nf7 {[%clk 0:00:58]} 28. Be6 {[%clk 0:01:18]}  Ng5+ {[%clk 0:00:56]} 29. Kg4 {[%clk 0:01:18]}  Rh8 {[%clk 0:00:41]} 30. Kf5 {[%clk 0:01:10]}  Rh6 {[%clk 0:00:34]} 31. f4 {[%clk 0:00:54]}  Nh7 {[%clk 0:00:30]} 32. Bf7 {[%clk 0:00:50]}  Nf8 {[%clk 0:00:20]} 33. Re1 {[%clk 0:00:48]}  Rh3 {[%clk 0:00:14]} 34. Re8 {[%clk 0:00:45]}  Nd7 {[%clk 0:00:13]} 35. Be6 {[%clk 0:00:45]}  Rxg3 {[%clk 0:00:12]} 36. Rg8 {[%clk 0:00:26]}  g6+ {[%clk 0:00:10]} 37. Rxg6 {[%clk 0:00:26]}  Rxg6 {[%clk 0:00:10]} 38. Kxg6 {[%clk 0:00:27]}  Bxf4 {[%clk 0:00:10]} 39. Bxd7 {[%clk 0:00:19]}  Kxd7 {[%clk 0:00:10]} 40. Kf5 {[%clk 0:00:19]}  Bc1 {[%clk 0:00:10]} 41. a4 {[%clk 0:00:18]}  b6 {[%clk 0:00:05]} 42. Kxf6 {[%clk 0:00:17]}  Kc7 {[%clk 0:00:03]} 43. Ke6 {[%clk 0:00:15]}  a6 {[%clk 0:00:02]} 44. d6+ {[%clk 0:00:16]}  Kd8 {[%clk 0:00:02]} 45. Ne5 {[%clk 0:00:16]}  b5 {[%clk 0:00:02]} 46. Nc6+ {[%clk 0:00:16]}  Kc8 {[%clk 0:00:02]} 47. d7+ {[%clk 0:00:17]} 1-0


[Site "https://www.chess.com"]

[Event "Early Titled Tuesday Blitz | February 8 2022"]
[White "Shimanov, Aleksandr"]
[Black "Dronavalli, Harika"]
[WhiteFideId "4198603"]
[BlackFideId "5015197"]
[WhiteElo "2636"]
[BlackElo "2382"]
[Result "0-1"]
[Round "07"]
[TimeControl "180+1"]
[Date "2022.02.08"]
[WhiteClock "0:00:02"]
[BlackClock "0:00:32"]

1. b3 {[%clk 0:03:00]}  Nf6 {[%clk 0:02:56]} 2. Bb2 {[%clk 0:02:57]}  g6 {[%clk 0:02:56]} 3. Nf3 {[%clk 0:02:55]}  Bg7 {[%clk 0:02:56]} 4. g3 {[%clk 0:02:55]}  b6 {[%clk 0:02:51]} 5. Bg2 {[%clk 0:02:54]}  Bb7 {[%clk 0:02:52]} 6. d4 {[%clk 0:02:53]}  O-O {[%clk 0:02:51]} 7. O-O {[%clk 0:02:53]}  c5 {[%clk 0:02:52]} 8. dxc5 {[%clk 0:02:41]}  bxc5 {[%clk 0:02:51]} 9. c4 {[%clk 0:02:42]}  d6 {[%clk 0:02:47]} 10. Nc3 {[%clk 0:02:41]}  a6 {[%clk 0:02:48]} 11. Qd2 {[%clk 0:02:33]}  Nc6 {[%clk 0:02:48]} 12. Rad1 {[%clk 0:02:33]}  Rb8 {[%clk 0:02:29]} 13. Ne1 {[%clk 0:02:30]}  Nd4 {[%clk 0:02:27]} 14. Bxb7 {[%clk 0:02:30]}  Rxb7 {[%clk 0:02:27]} 15. e3 {[%clk 0:02:27]}  Nc6 {[%clk 0:02:24]} 16. Nd3 {[%clk 0:02:27]}  Qa8 {[%clk 0:02:15]} 17. Qe2 {[%clk 0:02:26]}  Nd7 {[%clk 0:02:13]} 18. Nd5 {[%clk 0:02:20]}  e6 {[%clk 0:02:09]} 19. Bxg7 {[%clk 0:02:19]}  Kxg7 {[%clk 0:02:09]} 20. Qb2+ {[%clk 0:02:15]}  Kg8 {[%clk 0:01:55]} 21. Nf6+ {[%clk 0:02:15]}  Nxf6 {[%clk 0:01:56]} 22. Qxf6 {[%clk 0:02:16]}  Qd8 {[%clk 0:01:52]} 23. Qc3 {[%clk 0:02:11]}  Qe7 {[%clk 0:01:51]} 24. Rd2 {[%clk 0:02:07]}  a5 {[%clk 0:01:50]} 25. Rfd1 {[%clk 0:02:06]}  Rd8 {[%clk 0:01:49]} 26. Nb2 {[%clk 0:01:26]}  Ne5 {[%clk 0:01:32]} 27. Kg2 {[%clk 0:01:22]}  Rbb8 {[%clk 0:01:24]} 28. f3 {[%clk 0:01:19]}  Qb7 {[%clk 0:01:24]} 29. Rf1 {[%clk 0:01:19]}  h5 {[%clk 0:01:22]} 30. Nd3 {[%clk 0:00:57]}  Nxd3 {[%clk 0:01:18]} 31. Rxd3 {[%clk 0:00:57]}  Qc7 {[%clk 0:01:12]} 32. Rfd1 {[%clk 0:00:57]}  Ra8 {[%clk 0:01:09]} 33. Qd2 {[%clk 0:00:55]}  Ra6 {[%clk 0:01:06]} 34. a4 {[%clk 0:00:54]}  Rb8 {[%clk 0:01:03]} 35. e4 {[%clk 0:00:47]}  e5 {[%clk 0:00:56]} 36. Rxd6 {[%clk 0:00:38]}  Rxd6 {[%clk 0:00:57]} 37. Qxd6 {[%clk 0:00:39]}  Qxd6 {[%clk 0:00:57]} 38. Rxd6 {[%clk 0:00:40]}  Rxb3 {[%clk 0:00:57]} 39. Rd5 {[%clk 0:00:41]}  Rb4 {[%clk 0:00:58]} 40. Rxc5 {[%clk 0:00:40]}  Rxa4 {[%clk 0:00:58]} 41. Rxe5 {[%clk 0:00:40]}  Rxc4 {[%clk 0:00:58]} 42. Rxa5 {[%clk 0:00:40]}  Rc2+ {[%clk 0:00:59]} 43. Kh3 {[%clk 0:00:40]}  Kg7 {[%clk 0:00:59]} 44. f4 {[%clk 0:00:38]}  Re2 {[%clk 0:00:59]} 45. e5 {[%clk 0:00:38]}  Kf8 {[%clk 0:00:59]} 46. Ra1 {[%clk 0:00:38]}  Ke7 {[%clk 0:00:59]} 47. Rg1 {[%clk 0:00:38]}  Ke6 {[%clk 0:00:59]} 48. Rg2 {[%clk 0:00:38]}  Re4 {[%clk 0:00:51]} 49. Rd2 {[%clk 0:00:38]}  Ke7 {[%clk 0:00:49]} 50. Kh4 {[%clk 0:00:38]}  Kf8 {[%clk 0:00:42]} 51. Kg5 {[%clk 0:00:35]}  Kg7 {[%clk 0:00:43]} 52. Rd3 {[%clk 0:00:26]}  Re2 {[%clk 0:00:43]} 53. h3 {[%clk 0:00:26]}  Re1 {[%clk 0:00:43]} 54. g4 {[%clk 0:00:18]}  hxg4 {[%clk 0:00:43]} 55. hxg4 {[%clk 0:00:19]}  Re4 {[%clk 0:00:36]} 56. Rd7 {[%clk 0:00:19]}  Re1 {[%clk 0:00:36]} 57. Rd6 {[%clk 0:00:19]}  Re2 {[%clk 0:00:34]} 58. Rc6 {[%clk 0:00:16]}  Re1 {[%clk 0:00:34]} 59. Rb6 {[%clk 0:00:16]}  Re2 {[%clk 0:00:34]} 60. Ra6 {[%clk 0:00:17]}  Re1 {[%clk 0:00:34]} 61. Ra5 {[%clk 0:00:16]}  Re4 {[%clk 0:00:35]} 62. f5 {[%clk 0:00:16]}  gxf5 {[%clk 0:00:35]} 63. gxf5 {[%clk 0:00:17]}  Re1 {[%clk 0:00:35]} 64. f6+ {[%clk 0:00:16]}  Kh7 {[%clk 0:00:35]} 65. Ra4 {[%clk 0:00:15]}  Rxe5+ {[%clk 0:00:34]} 66. Kf4 {[%clk 0:00:11]}  Rh5 {[%clk 0:00:33]} 67. Ra6 {[%clk 0:00:09]}  Kg6 {[%clk 0:00:33]} 68. Kg4 {[%clk 0:00:08]}  Rf5 {[%clk 0:00:33]} 69. Ra8 {[%clk 0:00:08]}  Rxf6 {[%clk 0:00:32]} 70. Rg8+ {[%clk 0:00:09]}  Kh7 {[%clk 0:00:33]} 71. Ra8 {[%clk 0:00:09]}  Kg7 {[%clk 0:00:33]} 72. Ra7 {[%clk 0:00:08]}  Rf1 {[%clk 0:00:33]} 73. Ra3 {[%clk 0:00:07]}  Kg6 {[%clk 0:00:33]} 74. Kg3 {[%clk 0:00:08]}  Kg5 {[%clk 0:00:31]} 75. Kg2 {[%clk 0:00:08]}  Rb1 {[%clk 0:00:30]} 76. Rc3 {[%clk 0:00:08]}  f5 {[%clk 0:00:30]} 77. Rd3 {[%clk 0:00:07]}  Rb2+ {[%clk 0:00:30]} 78. Kg1 {[%clk 0:00:07]}  Kg4 {[%clk 0:00:30]} 79. Rc3 {[%clk 0:00:07]}  f4 {[%clk 0:00:30]} 80. Ra3 {[%clk 0:00:07]}  Re2 {[%clk 0:00:30]} 81. Rb3 {[%clk 0:00:07]}  Re3 {[%clk 0:00:31]} 82. Rxe3 {[%clk 0:00:03]}  fxe3 {[%clk 0:00:31]} 83. Kg2 {[%clk 0:00:03]}  Kf4 {[%clk 0:00:31]} 84. Kf1 {[%clk 0:00:03]}  Kf3 {[%clk 0:00:32]} 85. Ke1 {[%clk 0:00:02]}  e2 {[%clk 0:00:32]} 0-1


[Site "https://www.chess.com"]

[Event "Early Titled Tuesday Blitz | February 8 2022"]
[White "Shimelkov, Vasiliy"]
[Black "Moiseenko, Alexander"]
[WhiteFideId "13701630"]
[BlackFideId "14102560"]
[WhiteElo "2073"]
[BlackElo "2577"]
[Result "1-0"]
[Round "07"]
[TimeControl "180+1"]
[Date "2022.02.08"]
[WhiteClock "0:00:13"]
[BlackClock "0:00:02"]

1. d4 {[%clk 0:03:00]}  Nf6 {[%clk 0:02:59]} 2. c4 {[%clk 0:03:00]}  c5 {[%clk 0:02:57]} 3. d5 {[%clk 0:02:59]}  b5 {[%clk 0:02:58]} 4. cxb5 {[%clk 0:02:59]}  a6 {[%clk 0:02:58]} 5. bxa6 {[%clk 0:02:59]}  g6 {[%clk 0:02:56]} 6. Nf3 {[%clk 0:02:59]}  Bxa6 {[%clk 0:02:56]} 7. Nc3 {[%clk 0:02:58]}  Bg7 {[%clk 0:02:56]} 8. g3 {[%clk 0:02:58]}  d6 {[%clk 0:02:56]} 9. Bg2 {[%clk 0:02:58]}  Nbd7 {[%clk 0:02:56]} 10. h3 {[%clk 0:02:58]}  Nb6 {[%clk 0:02:56]} 11. O-O {[%clk 0:02:57]}  Bc4 {[%clk 0:02:39]} 12. Nd2 {[%clk 0:02:26]}  Ba6 {[%clk 0:02:37]} 13. Re1 {[%clk 0:02:23]}  O-O {[%clk 0:02:36]} 14. e4 {[%clk 0:02:22]}  Nfd7 {[%clk 0:02:36]} 15. Rb1 {[%clk 0:02:19]}  Ne5 {[%clk 0:02:26]} 16. Bf1 {[%clk 0:02:13]}  Bd3 {[%clk 0:02:15]} 17. Bxd3 {[%clk 0:02:06]}  Nxd3 {[%clk 0:02:15]} 18. Re3 {[%clk 0:02:06]}  Ne5 {[%clk 0:01:39]} 19. Qe2 {[%clk 0:02:02]}  Qc8 {[%clk 0:01:30]} 20. Kg2 {[%clk 0:02:00]}  f5 {[%clk 0:01:29]} 21. f4 {[%clk 0:01:51]}  Nf7 {[%clk 0:01:29]} 22. e5 {[%clk 0:01:51]}  dxe5 {[%clk 0:01:17]} 23. fxe5 {[%clk 0:01:51]}  Rd8 {[%clk 0:01:15]} 24. Nc4 {[%clk 0:01:34]}  Nxc4 {[%clk 0:01:12]} 25. Qxc4 {[%clk 0:01:33]}  Nxe5 {[%clk 0:01:12]} 26. Qf4 {[%clk 0:01:29]}  Qb8 {[%clk 0:01:02]} 27. Bd2 {[%clk 0:01:23]}  c4 {[%clk 0:00:58]} 28. b3 {[%clk 0:01:12]}  cxb3 {[%clk 0:00:55]} 29. Rxb3 {[%clk 0:01:11]}  Qd6 {[%clk 0:00:51]} 30. Rb5 {[%clk 0:01:05]}  Rac8 {[%clk 0:00:44]} 31. Re2 {[%clk 0:00:57]}  Nc4 {[%clk 0:00:31]} 32. Qxd6 {[%clk 0:00:55]}  Nxd6 {[%clk 0:00:31]} 33. Rb3 {[%clk 0:00:52]}  Bxc3 {[%clk 0:00:29]} 34. Bxc3 {[%clk 0:00:48]}  Ne4 {[%clk 0:00:29]} 35. Be1 {[%clk 0:00:40]}  Rxd5 {[%clk 0:00:28]} 36. Rb7 {[%clk 0:00:40]}  Kf7 {[%clk 0:00:19]} 37. a4 {[%clk 0:00:40]}  Rdc5 {[%clk 0:00:14]} 38. a5 {[%clk 0:00:38]}  Rc2 {[%clk 0:00:14]} 39. Kf1 {[%clk 0:00:35]}  Rxe2 {[%clk 0:00:12]} 40. Kxe2 {[%clk 0:00:35]}  Rc2+ {[%clk 0:00:11]} 41. Kd3 {[%clk 0:00:33]}  Ra2 {[%clk 0:00:10]} 42. Bb4 {[%clk 0:00:29]}  Rxa5 {[%clk 0:00:06]} 43. Rxe7+ {[%clk 0:00:27]}  Kf6 {[%clk 0:00:06]} 44. Rxh7 {[%clk 0:00:26]}  Rb5 {[%clk 0:00:06]} 45. Kc4 {[%clk 0:00:24]}  Rb8 {[%clk 0:00:06]} 46. Ra7 {[%clk 0:00:19]}  Re8 {[%clk 0:00:03]} 47. g4 {[%clk 0:00:18]}  fxg4 {[%clk 0:00:02]} 48. hxg4 {[%clk 0:00:18]}  Kg5 {[%clk 0:00:03]} 49. Ra6 {[%clk 0:00:18]}  Nf6 {[%clk 0:00:02]} 50. Bd2+ {[%clk 0:00:17]}  Kxg4 {[%clk 0:00:01]} 51. Rxf6 {[%clk 0:00:17]}  g5 {[%clk 0:00:02]} 52. Rg6 {[%clk 0:00:17]}  Re5 {[%clk 0:00:02]} 53. Kd4 {[%clk 0:00:16]}  Rb5 {[%clk 0:00:02]} 54. Ke3 {[%clk 0:00:13]} 1-0


[Site "https://www.chess.com"]

[Event "Early Titled Tuesday Blitz | February 8 2022"]
[White "Silva, Kevin Ranidu"]
[Black "Alves Campelo, Danilo Cesar De L"]
[WhiteFideId "9935258"]
[BlackFideId "2123657"]
[WhiteElo "1626"]
[BlackElo "1994"]
[Result "1-0"]
[Round "07"]
[TimeControl "180+1"]
[Date "2022.02.08"]
[WhiteClock "0:00:07"]
[BlackClock "0:00:13"]

1. d4 {[%clk 0:03:00]}  Nf6 {[%clk 0:02:59]} 2. Nf3 {[%clk 0:03:00]}  e6 {[%clk 0:03:00]} 3. Bg5 {[%clk 0:03:00]}  c5 {[%clk 0:02:59]} 4. c3 {[%clk 0:03:00]}  Nc6 {[%clk 0:02:56]} 5. e3 {[%clk 0:02:59]}  Be7 {[%clk 0:02:54]} 6. Bd3 {[%clk 0:02:59]}  b6 {[%clk 0:02:51]} 7. Qc2 {[%clk 0:02:59]}  h6 {[%clk 0:02:50]} 8. Bh4 {[%clk 0:02:58]}  Bb7 {[%clk 0:02:45]} 9. Nbd2 {[%clk 0:02:58]}  O-O {[%clk 0:02:37]} 10. a3 {[%clk 0:02:58]}  cxd4 {[%clk 0:02:22]} 11. exd4 {[%clk 0:02:56]}  Rc8 {[%clk 0:02:22]} 12. O-O {[%clk 0:02:51]}  Ng4 {[%clk 0:02:12]} 13. Bg3 {[%clk 0:02:51]}  d6 {[%clk 0:01:55]} 14. d5 {[%clk 0:02:45]}  Nce5 {[%clk 0:01:50]} 15. dxe6 {[%clk 0:02:35]}  fxe6 {[%clk 0:01:45]} 16. Nxe5 {[%clk 0:02:32]}  Nxe5 {[%clk 0:01:37]} 17. Bxe5 {[%clk 0:02:21]}  dxe5 {[%clk 0:01:38]} 18. Rad1 {[%clk 0:02:13]}  Qe8 {[%clk 0:01:28]} 19. Bg6 {[%clk 0:02:12]}  Qc6 {[%clk 0:01:26]} 20. Be4 {[%clk 0:01:52]}  Qc7 {[%clk 0:01:26]} 21. Bxb7 {[%clk 0:01:50]}  Qxb7 {[%clk 0:01:27]} 22. Nf3 {[%clk 0:01:50]}  Rxf3 {[%clk 0:01:11]} 23. gxf3 {[%clk 0:01:48]}  Qxf3 {[%clk 0:01:12]} 24. Qg6 {[%clk 0:01:47]}  Qf5 {[%clk 0:00:53]} 25. Qg2 {[%clk 0:01:40]}  Rc4 {[%clk 0:00:46]} 26. h3 {[%clk 0:01:36]}  Rh4 {[%clk 0:00:34]} 27. Rd7 {[%clk 0:01:24]}  Bg5 {[%clk 0:00:27]} 28. Qa8+ {[%clk 0:00:14]}  Kh7 {[%clk 0:00:27]} 29. Qb7 {[%clk 0:00:10]}  Bf6 {[%clk 0:00:21]} 30. Qg2 {[%clk 0:00:09]}  Rxh3 {[%clk 0:00:21]} 31. Re1 {[%clk 0:00:10]}  Rh5 {[%clk 0:00:19]} 32. Re3 {[%clk 0:00:09]}  Rg5 {[%clk 0:00:18]} 33. Rg3 {[%clk 0:00:09]}  e4 {[%clk 0:00:18]} 34. Rxg5 {[%clk 0:00:09]}  Bxg5 {[%clk 0:00:19]} 35. Rd4 {[%clk 0:00:09]}  Qf3 {[%clk 0:00:14]} 36. Rxe4 {[%clk 0:00:07]}  Qxg2+ {[%clk 0:00:12]} 37. Kxg2 {[%clk 0:00:07]}  Bc1 {[%clk 0:00:11]} 38. Re2 {[%clk 0:00:06]}  Kg6 {[%clk 0:00:11]} 39. Rxe6+ {[%clk 0:00:05]}  Kf5 {[%clk 0:00:11]} 40. Re2 {[%clk 0:00:06]}  g5 {[%clk 0:00:11]} 41. a4 {[%clk 0:00:06]}  a6 {[%clk 0:00:10]} 42. b4 {[%clk 0:00:06]}  h5 {[%clk 0:00:09]} 43. b5 {[%clk 0:00:05]}  axb5 {[%clk 0:00:08]} 44. axb5 {[%clk 0:00:06]}  Ba3 {[%clk 0:00:08]} 45. c4 {[%clk 0:00:06]}  Bc5 {[%clk 0:00:09]} 46. Rd2 {[%clk 0:00:06]}  h4 {[%clk 0:00:09]} 47. Rd5+ {[%clk 0:00:07]}  Kg4 {[%clk 0:00:09]} 48. Rxc5 {[%clk 0:00:06]}  bxc5 {[%clk 0:00:10]} 49. b6 {[%clk 0:00:07]}  h3+ {[%clk 0:00:10]} 50. Kg1 {[%clk 0:00:06]}  Kf3 {[%clk 0:00:11]} 51. b7 {[%clk 0:00:07]}  h2+ {[%clk 0:00:12]} 52. Kxh2 {[%clk 0:00:06]}  Kxf2 {[%clk 0:00:13]} 53. b8=Q {[%clk 0:00:07]}  Ke3 {[%clk 0:00:12]} 54. Qe5+ {[%clk 0:00:07]}  Kd3 {[%clk 0:00:13]} 55. Qxc5 {[%clk 0:00:07]} 1-0


[Site "https://www.chess.com"]